fUSD/lending_fUSD_20240409
["ID","MTS","AMOUNT","RATE_DAILY","PERIOD"]
[321974156,1712665844012,-2650.15,0.00020678,2]
[321974157,1712665844022,-2105.48,0.00020678,2]
[321974158,1712665844031,-1423.72,0.00020678,2]
[321974159,1712665844039,-596.65,0.00020678,2]
[321974160,1712665844048,-1382.88,0.00020678,2]
[321974161,1712665844057,-2479.17,0.00020678,2]
[321974162,1712665844067,-4866.61,0.00020678,2]
[321974163,1712665844078,-500.0,0.00020678,2]
[321974164,1712665844087,-2303.07,0.00020678,2]
[321974165,1712665844096,-1595.13,0.00020678,2]
[321974166,1712665844105,-500.0,0.00020678,2]
[321974167,1712665844114,-5353.52,0.00020678,2]
[321974168,1712665844123,-3026.22,0.00020678,2]
[321974169,1712665844133,-9620.8,0.00020678,2]
[321974170,1712665844142,-500.0,0.00020678,2]
[321974171,1712665844151,-1707.45,0.00020678,2]
[321974172,1712665844160,-1695.02,0.00020678,2]
[321974173,1712665844169,-751.73,0.00020678,2]
[321974174,1712665844178,-5500.83,0.00020678,2]
[321974175,1712665844187,-4108.31,0.00020678,2]
[321974176,1712665844196,-3361.32,0.00020678,2]
[321974177,1712665844205,-943.83,0.00020678,2]
[321974178,1712665844214,-15995.71,0.00020678,2]
[321974179,1712665844223,-521.63,0.00020678,2]
[321974180,1712665844232,-521.63,0.00020678,2]
[321974181,1712665844241,-1108.39,0.00020678,2]
[321974182,1712665844252,-6818.84,0.00020678,2]
[321974183,1712665844261,-46691.27,0.00020678,2]
[321974184,1712665844270,-17257.96,0.00020678,2]
[321974185,1712665844279,-1590.26,0.00020678,2]
[321974186,1712665844289,-1093.3,0.00020678,2]
[321974187,1712665844298,-587.33,0.00020678,2]
[321974188,1712665844307,-4396.89,0.00020678,2]
[321974189,1712665844316,-7747.47,0.00020678,2]
[321974190,1712665844328,-500.0,0.00020678,2]
[321974191,1712665844337,-1523.16,0.00020678,2]
[321974192,1712665844350,-2947.64,0.00020678,2]
[321974193,1712665844359,-1690.93,0.00020678,2]
[321974194,1712665844368,-1244.29,0.00020678,2]
[321974195,1712665844378,-440.74028654,0.00020678,2]
[321974196,1712665844388,-1673.11,0.00020678,2]
[321974197,1712665844398,-2950.0,0.00020678,2]
[321974198,1712665844406,-2004.86,0.00020678,2]
[321974199,1712665844416,-2748.72,0.00020678,2]
[321974200,1712665844426,-1148.44,0.00020678,2]
[321974201,1712665844435,-4220.01,0.00020678,2]
[321974202,1712665844444,-3331.88,0.00020678,2]
[321974203,1712665844452,-500.0,0.00020678,2]
[321974204,1712665844461,-7240.54,0.00020678,2]
[321974205,1712665844470,-2914.89,0.00020678,2]
[321974206,1712665844479,-2372.62,0.00020678,2]
[321974207,1712665844488,-1279.7,0.00020678,2]
[321974208,1712665844498,-500.0,0.00020678,2]
[321974209,1712665844507,-405.97861752,0.00020679,2]
[321974210,1712665844516,-195.84349321,0.00020679,2]
[321974211,1712665844525,-500.0,0.00020679,2]
[321974212,1712665844534,-500.0,0.00020679,2]
[321974213,1712665844543,-983.9,0.00020679,2]
[321974214,1712665844552,-500.0,0.00020679,2]
[321974215,1712665844562,-1312.97,0.00020679,2]
[321974216,1712665844572,-580.44,0.00020679,2]
[321974217,1712665844587,-500.0,0.00020679,2]
[321974218,1712665844597,-525.69274217,0.00020679,2]
[321974219,1712665844607,-500.0,0.00020679,2]
[321974220,1712665844617,-500.0,0.00020679,2]
[321974221,1712665844627,-500.0,0.00020679,2]
[321974222,1712665844637,-500.0,0.00020679,2]
[321974223,1712665844646,-628.36,0.00020679,2]
[321974224,1712665844656,-500.0,0.00020679,2]
[321974225,1712665844665,-768.75,0.00020679,2]
[321974226,1712665844675,-500.0,0.00020679,2]
[321974227,1712665844685,-500.0,0.00020679,2]
[321974228,1712665844695,-500.0,0.00020679,2]
[321974229,1712665844704,-501.52,0.00020679,2]
[321974230,1712665844714,-500.0,0.00020679,2]
[321974231,1712665844724,-500.0,0.00020679,2]
[321974232,1712665844733,-603.65,0.00020679,2]
[321974233,1712665844742,-500.0,0.00020679,2]
[321974234,1712665844751,-500.0,0.00020679,2]
[321974235,1712665844760,-500.0,0.00020679,2]
[321974236,1712665844770,-500.0,0.00020679,2]
[321974237,1712665844780,-500.0,0.00020679,2]
[321974238,1712665844789,-639.47072961,0.00020679,2]
[321974239,1712665844798,-500.0,0.00020679,2]
[321974240,1712665844808,-500.0,0.00020679,2]
[321974241,1712665844817,-644.22,0.00020679,2]
[321974242,1712665844828,-500.0,0.00020679,2]
[321974243,1712665844837,-500.0,0.00020679,2]
[321974244,1712665844846,-500.0,0.00020679,2]
[321974245,1712665844855,-500.0,0.00020679,2]
[321974246,1712665844865,-515.29,0.00020679,2]
[321974247,1712665844874,-611.03875308,0.00020679,2]
[321974248,1712665844883,-500.0,0.00020679,2]
[321974249,1712665844892,-500.0,0.00020679,2]
[321974250,1712665844902,-500.0,0.00020679,2]
[321974251,1712665844911,-500.0,0.00020679,2]
[321974252,1712665844920,-566.22,0.00020679,2]
[321974253,1712665844930,-500.0,0.00020679,2]
[321974254,1712665844939,-469.17347516,0.00020679,2]
[321974255,1712665844948,-300.0,0.00020679,2]
[321974256,1712665844957,-500.0,0.00020679,2]
[321974257,1712665844966,-500.0,0.00020679,2]
[321974258,1712665844975,-500.0,0.00020679,2]
[321974259,1712665844984,-500.0,0.00020679,2]
[321974260,1712665844993,-500.0,0.00020679,2]
[321974261,1712665845002,-364.2217906,0.00020679,2]
[321974262,1712665845012,-150.0,0.00020679,2]
[321974263,1712665845021,-500.0,0.00020679,2]
[321974264,1712665845030,-500.0,0.00020679,2]
[321974265,1712665845040,-500.0,0.00020679,2]
[321974266,1712665845050,-500.0,0.00020679,2]
[321974267,1712665845059,-500.0,0.00020679,2]
[321974268,1712665845068,-500.0,0.00020679,2]
[321974269,1712665845081,-547.3,0.00020679,2]
[321974270,1712665845090,-578.8,0.00020679,2]
[321974271,1712665845100,-500.0,0.00020679,2]
[321974272,1712665845109,-586.88,0.00020679,2]
[321974273,1712665845119,-500.0,0.00020679,2]
[321974274,1712665845128,-500.0,0.00020679,2]
[321974275,1712665845138,-500.0,0.00020679,2]
[321974276,1712665845147,-500.0,0.00020679,2]
[321974277,1712665845155,-500.0,0.00020679,2]
[321974278,1712665845164,-500.0,0.00020679,2]
[321974279,1712665845173,-557.75,0.00020679,2]
[321974280,1712665845182,-500.0,0.00020679,2]
[321974281,1712665845191,-500.0,0.00020679,2]
[321974282,1712665845200,-500.0,0.00020679,2]
[321974283,1712665845210,-517.86,0.00020679,2]
[321974284,1712665845219,-327.32444834,0.00020679,2]
[321974285,1712665845228,-500.0,0.00020679,2]
[321974286,1712665845237,-245.66185354,0.00020679,2]
[321974287,1712665845247,-500.0,0.00020679,2]
[321974288,1712665845256,-500.0,0.00020679,2]
[321974289,1712665845266,-500.0,0.00020679,2]
[321974290,1712665845275,-500.0,0.00020679,2]
[321974291,1712665845285,-500.0,0.00020679,2]
[321974292,1712665845294,-500.0,0.00020679,2]
[321974293,1712665845304,-500.0,0.00020679,2]
[321974294,1712665845314,-500.0,0.00020679,2]
[321974295,1712665845326,-500.0,0.00020679,2]
[321974296,1712665845338,-500.0,0.00020679,2]
[321974297,1712665845349,-707.67,0.00020679,2]
[321974298,1712665845358,-625.26,0.00020679,2]
[321974299,1712665845367,-348.7949031,0.00020679,2]
[321974300,1712665845376,-500.0,0.00020679,2]
[321974301,1712665845386,-500.0,0.00020679,2]
[321974302,1712665845396,-500.0,0.00020679,2]
[321974303,1712665845406,-500.0,0.00020679,2]
[321974304,1712665845417,-236.45027307,0.00020679,2]
[321974305,1712665845427,-500.0,0.00020679,2]
[321974306,1712665845437,-500.0,0.00020679,2]
[321974307,1712665845446,-500.0,0.00020679,2]
[321974308,1712665845456,-500.0,0.00020679,2]
[321974309,1712665845465,-500.0,0.00020679,2]
[321974310,1712665845474,-848.06,0.00020679,2]
[321974311,1712665845483,-1053.9,0.00020679,2]
[321974312,1712665845493,-500.0,0.00020679,2]
[321974313,1712665845502,-500.0,0.00020679,2]
[321974314,1712665845512,-500.0,0.00020679,2]
[321974315,1712665845522,-500.0,0.00020679,2]
[321974316,1712665845531,-790.44,0.00020679,2]
[321974317,1712665845540,-500.0,0.00020679,2]
[321974321,1712665845726,-500.0,0.00020679,2]
[321974322,1712665845735,-500.0,0.00020679,2]
[321974323,1712665845745,-500.0,0.00020679,2]
[321974324,1712665845754,-500.0,0.00020679,2]
[321974325,1712665845764,-500.0,0.00020679,2]
[321974326,1712665845773,-832.29,0.00020679,2]
[321974327,1712665845782,-525.20026594,0.00020679,2]
[321974328,1712665845792,-500.0,0.00020679,2]
[321974329,1712665845802,-500.0,0.00020679,2]
[321974330,1712665845811,-500.0,0.00020679,2]
[321974331,1712665845820,-500.0,0.00020679,2]
[321974332,1712665845835,-500.0,0.00020679,2]
[321974333,1712665845844,-500.0,0.00020679,2]
[321974334,1712665845853,-500.0,0.00020679,2]
[321974335,1712665845864,-500.0,0.00020679,2]
[321974336,1712665845873,-500.0,0.00020679,2]
[321974337,1712665845882,-500.0,0.00020679,2]
[321974338,1712665845892,-500.0,0.00020679,2]
[321974339,1712665845901,-500.0,0.00020679,2]
[321974340,1712665845910,-500.0,0.00020679,2]
[321974341,1712665845919,-500.0,0.00020679,2]
[321974342,1712665845929,-500.0,0.00020679,2]
[321974343,1712665845938,-500.0,0.00020679,2]
[321974344,1712665845948,-886.63,0.00020679,2]
[321974345,1712665845957,-500.0,0.00020679,2]
[321974346,1712665845967,-596.09,0.00020679,2]
[321974347,1712665845976,-500.0,0.00020679,2]
[321974348,1712665845986,-500.0,0.00020679,2]
[321974349,1712665845995,-500.0,0.00020679,2]
[321974350,1712665846005,-500.0,0.00020679,2]
[321974351,1712665846014,-500.0,0.00020679,2]
[321974352,1712665846024,-500.0,0.00020679,2]
[321974353,1712665846034,-801.54,0.00020679,2]
[321974354,1712665846043,-500.0,0.00020679,2]
[321974355,1712665846053,-500.0,0.00020679,2]
[321974356,1712665846063,-500.0,0.00020679,2]
[321974357,1712665846077,-500.0,0.00020679,2]
[321974358,1712665846086,-500.0,0.00020679,2]
[321974359,1712665846096,-500.0,0.00020679,2]
[321974360,1712665846105,-500.0,0.00020679,2]
[321974361,1712665846114,-500.0,0.00020679,2]
[321974362,1712665846123,-500.0,0.00020679,2]
[321974363,1712665846133,-666.11,0.00020679,2]
[321974364,1712665846142,-662.07,0.00020679,2]
[321974365,1712665846151,-500.0,0.00020679,2]
[321974366,1712665846160,-754.81,0.00020679,2]
[321974367,1712665846169,-500.0,0.00020679,2]
[321974368,1712665846178,-500.0,0.00020679,2]
[321974369,1712665846188,-500.0,0.00020679,2]
[321974370,1712665846197,-500.0,0.00020679,2]
[321974371,1712665846206,-500.0,0.00020679,2]
[321974372,1712665846215,-500.0,0.00020679,2]
[321974373,1712665846224,-500.0,0.00020679,2]
[321974374,1712665846233,-3222.68,0.00020679,2]
[321974375,1712665846242,-500.0,0.00020679,2]
[321974376,1712665846251,-533.64,0.00020679,2]
[321974377,1712665846260,-515.10633323,0.00020679,2]
[321974378,1712665846269,-500.0,0.00020679,2]
[321974379,1712665846279,-500.0,0.00020679,2]
[321974380,1712665846288,-609.31,0.00020679,2]
[321974381,1712665846297,-500.0,0.00020679,2]
[321974382,1712665846306,-4647.26,0.00020679,2]
[321974383,1712665846316,-847.05,0.00020679,2]
[321974384,1712665846327,-500.0,0.00020679,2]
[321974385,1712665846336,-1403.89,0.00020679,2]
[321974386,1712665846349,-500.0,0.00020679,2]
[321974387,1712665846359,-500.0,0.00020679,2]
[321974388,1712665846368,-586.68,0.00020679,2]
[321974389,1712665846377,-3167.67,0.00020679,2]
[321974390,1712665846387,-519.08,0.00020679,2]
[321974391,1712665846395,-500.0,0.00020679,2]
[321974392,1712665846405,-500.0,0.00020679,2]
[321974393,1712665846415,-3464.09,0.00020679,2]
[321974394,1712665846425,-529.58,0.00020679,2]
[321974395,1712665846434,-5404.97,0.00020679,2]
[321974396,1712665846443,-1066.66,0.00020679,2]
[321974397,1712665846452,-5777.07,0.00020679,2]
[321974398,1712665846461,-500.0,0.00020679,2]
[321974399,1712665846470,-8661.88,0.00020679,2]
[321974400,1712665846480,-11053.15,0.00020679,2]
[321974401,1712665846489,-1673.79,0.00020679,2]
[321974402,1712665846498,-956.87,0.00020679,2]
[321974403,1712665846508,-2717.06,0.00020679,2]
[321974404,1712665846517,-6465.95,0.00020679,2]
[321974405,1712665846526,-531.39,0.00020679,2]
[321974406,1712665846537,-549.07,0.00020679,2]
[321974407,1712665846546,-2046.72,0.00020679,2]
[321974408,1712665846555,-2756.13,0.00020679,2]
[321974409,1712665846565,-500.0,0.00020679,2]
[321974410,1712665846577,-16482.36,0.00020679,2]
[321974411,1712665846586,-5611.99,0.00020679,2]
[321974412,1712665846595,-500.0,0.00020679,2]
[321974413,1712665846605,-9347.12,0.00020679,2]
[321974414,1712665846615,-500.0,0.00020679,2]
[321974415,1712665846624,-4651.8,0.00020679,2]
[321974416,1712665846634,-500.0,0.00020679,2]
[321974417,1712665846643,-500.0,0.00020679,2]
[321974418,1712665846653,-13899.29,0.00020679,2]
[321974419,1712665846663,-500.0,0.00020679,2]
[321974420,1712665846672,-500.0,0.00020679,2]
[321974421,1712665846682,-521.63,0.00020679,2]
[321974422,1712665846691,-521.63,0.00020679,2]
[321974423,1712665846700,-500.0,0.00020679,2]
[321974424,1712665846709,-6007.25,0.00020679,2]
[321974425,1712665846719,-612.48,0.00020679,2]
[321974426,1712665846729,-500.0,0.00020679,2]
[321974427,1712665846739,-2853.55,0.00020679,2]
[321974428,1712665846748,-21237.86,0.00020679,2]
[321974429,1712665846758,-500.0,0.00020679,2]
[321974430,1712665846767,-2452.35,0.00020679,2]
[321974431,1712665846776,-500.0,0.00020679,2]
[321974432,1712665846786,-500.0,0.00020679,2]
[321974433,1712665846795,-3770.85,0.00020679,2]
[321974434,1712665846805,-500.0,0.00020679,2]
[321974435,1712665846815,-500.0,0.00020679,2]
[321974436,1712665846827,-5349.34,0.00020679,2]
[321974437,1712665846837,-638.44,0.00020679,2]
[321974438,1712665846846,-500.0,0.00020679,2]
[321974439,1712665846856,-2534.53,0.00020679,2]
[321974440,1712665846866,-723.63,0.00020679,2]
[321974441,1712665846876,-500.0,0.00020679,2]
[321974442,1712665846886,-3994.99,0.00020679,2]
[321974443,1712665846895,-240.72924602,0.00020679,2]
[321974444,1712665846904,-500.0,0.00020679,2]
[321974445,1712665846913,-471.22762964,0.00020679,2]
[321974446,1712665846922,-2873.89,0.00020679,2]
[321974447,1712665846932,-500.0,0.00020679,2]
[321974448,1712665846941,-500.0,0.00020679,2]
[321974449,1712665846950,-502.05,0.00020679,2]
[321974450,1712665846960,-834.7,0.00020679,2]
[321974451,1712665846969,-801.19,0.00020679,2]
[321974452,1712665846978,-500.0,0.00020679,2]
[321974453,1712665846987,-500.0,0.00020679,2]
[321974454,1712665846997,-3727.76,0.00020679,2]
[321974455,1712665847007,-500.0,0.00020679,2]
[321974456,1712665847017,-6218.2,0.00020679,2]
[321974457,1712665847026,-500.0,0.00020679,2]
[321974458,1712665847035,-3419.06,0.00020679,2]
[321974459,1712665847045,-500.0,0.00020679,2]
[321974460,1712665847054,-500.0,0.00020679,2]
[321974461,1712665847063,-158245.47744904,0.0002068,2]
[321974462,1712665847073,-804.05,0.0002068,2]
[321974463,1712665847083,-1217.08,0.0002068,2]
[321974464,1712665847093,-764.92,0.0002068,2]
[321974465,1712665847102,-500.0,0.0002068,2]
[321974466,1712665847112,-502.93,0.0002068,2]
[321974467,1712665847121,-1105.79,0.0002068,2]
[321974468,1712665847131,-911.95,0.0002068,2]
[321974469,1712665847141,-500.0,0.0002068,2]
[321974470,1712665847150,-500.0,0.0002068,2]
[321974471,1712665847160,-500.0,0.0002068,2]
[321974472,1712665847169,-789.12,0.0002068,2]
[321974473,1712665847178,-500.0,0.0002068,2]
[321974474,1712665847187,-500.0,0.0002068,2]
[321974475,1712665847197,-500.0,0.0002068,2]
[321974476,1712665847206,-631.3,0.0002068,2]
[321974477,1712665847215,-500.0,0.0002068,2]
[321974478,1712665847225,-500.0,0.0002068,2]
[321974479,1712665847234,-666.43,0.0002068,2]
[321974480,1712665847243,-600.40227055,0.0002068,2]
[321974481,1712665847253,-1028.01,0.0002068,2]
[321974482,1712665847262,-1157.83,0.0002068,2]
[321974483,1712665847271,-500.0,0.0002068,2]
[321974484,1712665847280,-1431.93,0.0002068,2]
[321974485,1712665847290,-500.0,0.0002068,2]
[321974486,1712665847298,-1997.17,0.0002068,2]
[321974487,1712665847308,-548.31,0.0002068,2]
[321974488,1712665847317,-1178.43,0.0002068,2]
[321974489,1712665847329,-500.0,0.0002068,2]
[321974490,1712665847341,-566.47,0.0002068,2]
[321974491,1712665847350,-160.97335859,0.0002068,2]
[321974492,1712665847360,-533.54,0.0002068,2]
[321974493,1712665847369,-500.0,0.0002068,2]
[321974494,1712665847379,-666.84,0.0002068,2]
[321974495,1712665847388,-1092.22,0.0002068,2]
[321974496,1712665847397,-1449.5,0.0002068,2]
[321974497,1712665847406,-30530.78,0.0002068,2]
[321974498,1712665847415,-3363.84,0.0002068,2]
[321974499,1712665847425,-925.13,0.0002068,2]
[321974500,1712665847434,-500.0,0.0002068,2]
[321974501,1712665847444,-2744.22,0.0002068,2]
[321974502,1712665847453,-8622.76,0.0002068,2]
[321974503,1712665847463,-1919.72,0.0002068,2]
[321974504,1712665847472,-2606.9,0.0002068,2]
[321974505,1712665847481,-1121.74,0.0002068,2]
[321974506,1712665847491,-1859.81,0.0002068,2]
[321974507,1712665847502,-2956.48,0.0002068,2]
[321974508,1712665847512,-886.47,0.0002068,2]
[321974509,1712665847521,-500.0,0.0002068,2]
[321974510,1712665847531,-2280.34,0.0002068,2]
[321974511,1712665847541,-2224.27,0.0002068,2]
[321974512,1712665847551,-1289.84,0.0002068,2]
[321974513,1712665847560,-500.0,0.0002068,2]
[321974514,1712665847570,-500.0,0.0002068,2]
[321974515,1712665847582,-500.0,0.0002068,2]
[321974516,1712665847591,-1362.04,0.0002068,2]
[321974517,1712665847601,-4230.98730442,0.0002068,2]
[321974518,1712665847681,-213.46269558,0.0002068,2]
[321974519,1712665847691,-36.94837642,0.0002068,2]
[321974520,1712665847702,-309.16327946,0.0002068,2]
[321974521,1712665847859,-153.88834412,0.0002068,2]
[321974522,1712665847869,-3538.3852911,0.0002068,2]
[321974523,1712665847881,-586.6747089,0.0002068,2]
[321974524,1712665848187,-500.0,0.0002068,2]
[321974525,1712665848204,-500.0,0.0002068,2]
[321974526,1712665848213,-962.33,0.0002068,2]
[321974527,1712665848222,-1497.91,0.0002068,2]
[321974528,1712665848232,-500.0,0.0002068,2]
[321974529,1712665848242,-218.60885359,0.0002068,2]
[321974530,1712665848254,-474.21114641,0.0002068,2]
[321974531,1712665848264,-1543.61,0.0002068,2]
[321974532,1712665848273,-915.78,0.0002068,2]
[321974533,1712665848283,-500.0,0.0002068,2]
[321974534,1712665848292,-1055.82683644,0.0002068,2]
[321974535,1712665848304,-689.19451493,0.0002068,2]
[321974536,1712665848376,-734.41864863,0.0002068,2]
[321974537,1712665848385,-830.6,0.0002068,2]
[321974538,1712665848397,-689.64,0.0002068,2]
[321974539,1712665848406,-939.90521569,0.0002068,2]
[321974540,1712665849667,-500.0,0.00020677,2]
[321974541,1712665849678,-702.39478431,0.0002068,2]
[321974542,1712665849688,-2595.53822789,0.0002068,2]
[321974543,1712665849922,-159.95177211,0.0002068,2]
[321974544,1712665849931,-500.0,0.0002068,2]
[321974545,1712665849941,-3115.94,0.0002068,2]
[321974546,1712665849950,-1035.73,0.0002068,2]
[321974547,1712665849959,-634.76,0.0002068,2]
[321974548,1712665849968,-997.16,0.0002068,2]
[321974549,1712665849978,-2980.56,0.0002068,2]
[321974550,1712665849987,-500.0,0.0002068,2]
[321974551,1712665849996,-525.48,0.0002068,2]
[321974552,1712665850005,-3040.32,0.0002068,2]
[321974553,1712665850015,-2048.34,0.0002068,2]
[321974554,1712665850023,-5036.08,0.0002068,2]
[321974555,1712665850032,-756.06,0.0002068,2]
[321974556,1712665850041,-812.15,0.0002068,2]
[321974557,1712665850051,-8055.42,0.0002068,2]
[321974558,1712665850060,-731.34,0.0002068,2]
[321974559,1712665850069,-31299.91422992,0.0002068,2]
[321974560,1712665850082,-7234.68577008,0.0002068,2]
[321974561,1712665850091,-1606.2,0.0002068,2]
[321974562,1712665850100,-1500.53,0.0002068,2]
[321974563,1712665850109,-1062.91,0.0002068,2]
[321974564,1712665850119,-906.93,0.0002068,2]
[321974565,1712665850128,-9911.97,0.0002068,2]
[321974566,1712665850137,-500.0,0.0002068,2]
[321974567,1712665850147,-1538.02,0.0002068,2]
[321974568,1712665850156,-2350.69,0.0002068,2]
[321974569,1712665850165,-500.0,0.0002068,2]
[321974570,1712665850174,-1386.49,0.0002068,2]
[321974571,1712665850183,-1061.18,0.0002068,2]
[321974572,1712665850193,-555.84,0.0002068,2]
[321974573,1712665850202,-500.0,0.0002068,2]
[321974574,1712665850211,-789.54,0.0002068,2]
[321974575,1712665850220,-3329.47,0.0002068,2]
[321974576,1712665850230,-675.34,0.0002068,2]
[321974577,1712665850239,-492.06392965,0.00020695,2]
[321974578,1712665850319,-152.14607274,0.00020698,2]
[321974579,1712665850342,-3603.9511,0.00020699,2]
[321974580,1712665850359,-212.0,0.000207,2]
[321974581,1712665850370,-2596.83554622,0.000207,2]
[321974582,1712665850379,-428.79165405,0.00020716,2]
[321974583,1712665850391,-428.79165405,0.00020784,2]
[321974584,1712665850401,-449.73791284,0.00020788,2]
[321974585,1712665850410,-1379.40780617,0.0002079,2]
[321974586,1712665850420,-444.98588362,0.00020797,2]
[321974587,1712665850431,-310.47026813,0.00020797,2]
[321974588,1712665850443,-436.52665143,0.00020797,2]
[321974589,1712665850453,-1159.06260642,0.00020798,2]
[321974590,1712665850463,-3153.4467728,0.00020798,2]
[321974591,1712665850472,-342.43500003,0.00020798,2]
[321974592,1712665850483,-262.51237403,0.00020798,2]
[321974593,1712665850492,-296.17380252,0.00020798,2]
[321974594,1712665850501,-312.07574734,0.00020798,2]
[321974595,1712665850511,-297.4969738,0.00020798,2]
[321974596,1712665850521,-406.85892851,0.00020798,2]
[321974597,1712665850530,-454.99235966,0.00020798,2]
[321974598,1712665850539,-1056.48302686,0.00020798,2]
[321974599,1712665850549,-289.82922792,0.00020798,2]
[321974600,1712665850559,-977.6479354,0.00020798,2]
[321974601,1712665850569,-207.4252112,0.00020798,2]
[321974602,1712665850579,-1186.63079143,0.00020798,2]
[321974603,1712665850589,-209.56408712,0.00020798,2]
[321974604,1712665850599,-500.0,0.00020798,2]
[321974605,1712665850610,-618.00525848,0.00020798,2]
[321974606,1712665850620,-500.0,0.00020798,2]
[321974607,1712665850629,-500.0,0.00020798,2]
[321974608,1712665850639,-708.78,0.00020798,2]
[321974609,1712665850648,-695.57,0.00020798,2]
[321974610,1712665850658,-669.11,0.00020798,2]
[321974611,1712665850668,-500.0,0.00020798,2]
[321974612,1712665850677,-940.06,0.00020798,2]
[321974613,1712665850688,-500.0,0.00020798,2]
[321974614,1712665850697,-500.0,0.00020798,2]
[321974615,1712665850707,-500.0,0.00020798,2]
[321974616,1712665850717,-500.0,0.00020798,2]
[321974617,1712665850727,-500.0,0.00020798,2]
[321974618,1712665850737,-500.0,0.00020798,2]
[321974619,1712665850746,-500.0,0.00020798,2]
[321974620,1712665850756,-500.0,0.00020798,2]
[321974621,1712665850766,-500.0,0.00020798,2]
[321974622,1712665850775,-500.0,0.00020798,2]
[321974623,1712665850784,-889.7,0.00020798,2]
[321974624,1712665850793,-1140.43,0.00020798,2]
[321974625,1712665850803,-1749.03,0.00020798,2]
[321974626,1712665850812,-500.0,0.00020798,2]
[321974627,1712665850827,-617.88,0.00020798,2]
[321974628,1712665850837,-637.83,0.00020798,2]
[321974629,1712665850847,-500.0,0.00020798,2]
[321974630,1712665850856,-1666.88,0.00020798,2]
[321974631,1712665850866,-532.31,0.00020798,2]
[321974632,1712665850875,-500.0,0.00020798,2]
[321974633,1712665850887,-500.0,0.00020798,2]
[321974634,1712665850896,-1642.93,0.00020798,2]
[321974635,1712665850906,-500.0,0.00020798,2]
[321974636,1712665850915,-500.0,0.00020798,2]
[321974637,1712665850925,-1307.96,0.00020798,2]
[321974638,1712665850934,-958.68,0.00020798,2]
[321974639,1712665850943,-500.0,0.00020798,2]
[321974640,1712665850952,-500.0,0.00020798,2]
[321974641,1712665850961,-1370.94,0.00020798,2]
[321974642,1712665850970,-500.0,0.00020798,2]
[321974643,1712665850979,-1001.37,0.00020798,2]
[321974644,1712665850988,-500.0,0.00020798,2]
[321974645,1712665850997,-244.63310006,0.00020798,2]
[321974646,1712665851041,-255.36689994,0.00020798,2]
[321974647,1712665851050,-244.54706288,0.00020798,2]
[321974648,1712665851062,-259.36263498,0.00020798,2]
[321974649,1712665851073,-638.64134705,0.00020798,2]
[321974650,1712665851087,-147.70895509,0.00020798,2]
[321974651,1712665851098,-500.0,0.00020798,2]
[321974652,1712665851107,-500.0,0.00020798,2]
[321974653,1712665851118,-1450.9,0.00020798,2]
[321974654,1712665851128,-2202.76,0.00020798,2]
[321974655,1712665851137,-500.0,0.00020798,2]
[321974656,1712665851147,-500.0,0.00020798,2]
[321974657,1712665851157,-500.0,0.00020798,2]
[321974658,1712665851167,-700.06,0.00020798,2]